lending/lending_fUSD_20250303
["ID","MTS","AMOUNT","RATE_DAILY","PERIOD"]
[355239672,1741033846761,-500.0,0.00014548,2]
[355239675,1741033846777,-537.69496342,0.00014548,2]
[355239678,1741033846792,-1029.2,0.00014548,2]
[355239680,1741033846807,-500.0,0.00014548,2]
[355239683,1741033846823,-500.0,0.00014548,2]
[355239685,1741033846838,-500.0,0.00014548,2]
[355239688,1741033846853,-500.0,0.00014548,2]
[355239692,1741033846868,-500.0,0.00014548,2]
[355239695,1741033846881,-500.0,0.00014548,2]
[355239700,1741033846896,-676.83,0.00014548,2]
[355239703,1741033846912,-500.0,0.00014548,2]
[355239707,1741033846926,-500.0,0.00014548,2]
[355239709,1741033846936,-726.15,0.00014548,2]
[355239711,1741033846946,-712.17,0.00014548,2]
[355239713,1741033846957,-1272.9,0.00014548,2]
[355239715,1741033846970,-500.0,0.00014548,2]
[355239717,1741033846981,-1160.75,0.00014548,2]
[355239719,1741033846992,-500.0,0.00014548,2]
[355239721,1741033847003,-500.0,0.00014548,2]
[355239723,1741033847015,-500.0,0.00014548,2]
[355239725,1741033847030,-500.0,0.00014548,2]
[355239769,1741033847475,-500.0,0.00014548,2]
[355239775,1741033847527,-1610.84,0.00014548,2]
[355239778,1741033847542,-500.0,0.00014548,2]
[355239780,1741033847552,-690.95,0.00014548,2]
[355239782,1741033847562,-500.0,0.00014548,2]
[355239784,1741033847573,-1892.44,0.00014548,2]
[355239786,1741033847584,-500.0,0.00014548,2]
[355239788,1741033847595,-1848.72,0.00014548,2]
[355239790,1741033847606,-783.35,0.00014548,2]
[355239792,1741033847617,-500.0,0.00014548,2]
[355239794,1741033847628,-500.0,0.00014548,2]
[355239796,1741033847639,-500.0,0.00014548,2]
[355239798,1741033847651,-500.0,0.00014548,2]
[355239800,1741033847662,-5000.0,0.00014548,2]
[355239802,1741033847673,-500.0,0.00014548,2]
[355239804,1741033847684,-1099.07,0.00014548,2]
[355239806,1741033847695,-765.4,0.00014548,2]
[355239808,1741033847705,-933.14,0.00014548,2]
[355239810,1741033847721,-2124.37,0.00014548,2]
[355239812,1741033847731,-500.0,0.00014548,2]
[355239814,1741033847741,-837.46,0.00014548,2]
[355239816,1741033847751,-500.0,0.00014548,2]
[355239818,1741033847760,-500.0,0.00014548,2]
[355239820,1741033847770,-954.49,0.00014548,2]
[355239822,1741033847779,-2650.83,0.00014548,2]
[355239824,1741033847789,-500.0,0.00014548,2]
[355239826,1741033847798,-1119.17,0.00014548,2]
[355239828,1741033847807,-1100.37,0.00014548,2]
[355239830,1741033847816,-201.53621035,0.00014548,2]
[355239832,1741033847826,-500.0,0.00014548,2]
[355239834,1741033847835,-331.4266631,0.00014548,2]
[355239836,1741033847845,-500.0,0.00014548,2]
[355239838,1741033847854,-500.0,0.00014548,2]
[355239840,1741033847864,-500.0,0.00014548,2]
[355239843,1741033847874,-956.04,0.00014548,2]
[355239845,1741033847888,-1423.95,0.00014548,2]
[355239847,1741033847898,-1159.12,0.00014548,2]
[355239849,1741033847908,-988.88,0.00014548,2]
[355239851,1741033847917,-500.0,0.00014548,2]
[355239853,1741033847927,-500.0,0.00014548,7]
[355239855,1741033847936,-1640.37,0.00014548,2]
[355239857,1741033847946,-500.0,0.00014548,2]
[355239859,1741033847956,-500.0,0.00014549,2]
[355239861,1741033847969,-994.42,0.00014549,2]
[355239863,1741033847979,-500.0,0.00014549,2]
[355239865,1741033847989,-500.0,0.00014549,2]
[355239867,1741033847999,-506.74345969,0.00014549,2]
[355239869,1741033848009,-500.0,0.00014549,2]
[355239871,1741033848018,-500.0,0.00014549,2]
[355239873,1741033848029,-183.9752882,0.00014549,2]
[355239875,1741033848040,-500.0,0.00014549,2]
[355239877,1741033848050,-500.0,0.00014549,2]
[355239879,1741033848061,-238.82643982,0.00014549,2]
[355239881,1741033848072,-926.48,0.00014549,2]
[355239883,1741033848082,-1080.19,0.00014549,2]
[355239885,1741033848093,-500.0,0.00014549,2]
[355239887,1741033848103,-1363.89,0.00014549,2]
[355239889,1741033848114,-767.08,0.00014549,2]
[355239891,1741033848124,-500.0,0.00014549,2]
[355239893,1741033848134,-500.0,0.00014549,2]
[355239896,1741033848146,-500.0,0.00014549,2]
[355239898,1741033848155,-500.0,0.00014549,2]
[355239900,1741033848167,-752.57,0.00014549,2]
[355239902,1741033848179,-500.1919967,0.00014549,2]
[355239904,1741033848190,-1292.49,0.00014549,2]
[355239906,1741033848201,-806.74,0.00014549,2]
[355239908,1741033848215,-500.0,0.00014549,2]
[355239910,1741033848226,-500.0,0.00014549,2]
[355239912,1741033848236,-500.0,0.00014549,2]
[355239914,1741033848246,-914.56,0.00014549,2]
[355239916,1741033848257,-762.86,0.00014549,2]
[355239918,1741033848268,-500.0,0.00014549,2]
[355239920,1741033848279,-820.73,0.00014549,2]
[355239922,1741033848290,-525.96965732,0.00014549,2]
[355239924,1741033848301,-712.23,0.00014549,2]
[355239926,1741033848312,-500.0,0.00014549,2]
[355239928,1741033848323,-500.0,0.00014549,2]
[355239930,1741033848334,-1055.3,0.00014549,2]
[355239932,1741033848344,-500.0,0.00014549,2]
[355239934,1741033848356,-609.40707677,0.00014549,2]
[355239936,1741033848367,-500.0,0.00014549,2]
[355239938,1741033848378,-523.52511215,0.00014549,2]
[355239940,1741033848392,-500.0,0.00014549,2]
[355239943,1741033848404,-500.0,0.00014549,2]
[355239945,1741033848415,-500.0,0.00014549,2]
[355239946,1741033848428,-500.0,0.00014549,2]
[355239949,1741033848441,-500.0,0.00014549,2]
[355239951,1741033848453,-500.0,0.00014549,2]
[355239953,1741033848466,-500.0,0.00014549,2]
[355239955,1741033848477,-627.93,0.00014549,2]
[355239957,1741033848488,-500.0,0.00014549,2]
[355239959,1741033848498,-1102.95,0.00014549,2]
[355239961,1741033848509,-1042.09,0.00014549,2]
[355239963,1741033848520,-500.0,0.00014549,2]
[355239965,1741033848531,-500.0,0.00014549,2]
[355239967,1741033848541,-500.0,0.00014549,2]
[355239969,1741033848552,-500.0,0.00014549,2]
[355239971,1741033848562,-988.34,0.00014549,2]
[355239973,1741033848573,-500.0,0.00014549,2]
[355239975,1741033848583,-500.0,0.00014549,2]
[355239977,1741033848595,-500.0,0.00014549,2]
[355239979,1741033848606,-913.61,0.00014549,2]
[355239981,1741033848616,-500.0,0.00014549,2]
[355239983,1741033848626,-500.0,0.00014549,2]
[355239985,1741033848637,-784.96,0.00014549,2]
[355239987,1741033848647,-500.0,0.00014549,2]
[355239989,1741033848658,-500.0,0.00014549,2]
[355239990,1741033848669,-500.0,0.00014549,2]
[355239991,1741033848679,-500.0,0.00014549,2]
[355239992,1741033848690,-500.0,0.00014549,2]
[355239993,1741033848700,-500.0,0.00014549,2]
[355239994,1741033848711,-500.0,0.00014549,2]
[355239995,1741033848724,-530.51,0.00014549,2]
[355239996,1741033848735,-500.0,0.00014549,2]
[355239997,1741033848750,-500.0,0.00014549,2]
[355239998,1741033848760,-500.0,0.00014549,2]
[355239999,1741033848771,-481.61249662,0.00014549,2]
[355240001,1741033848781,-500.0,0.00014549,2]
[355240003,1741033848791,-500.0,0.00014549,2]
[355240005,1741033848801,-500.0,0.00014549,2]
[355240007,1741033848811,-500.0,0.00014549,2]
[355240009,1741033848822,-610.94,0.00014549,2]
[355240011,1741033848832,-840.49,0.00014549,2]
[355240013,1741033848842,-500.0,0.00014549,2]
[355240015,1741033848852,-500.0,0.00014549,2]
[355240017,1741033848862,-500.0,0.00014549,2]
[355240019,1741033848871,-500.0,0.00014549,2]
[355240021,1741033848881,-624.26,0.00014549,2]
[355240023,1741033848891,-500.0,0.00014549,2]
[355240025,1741033848900,-500.0,0.00014549,2]
[355240027,1741033848910,-731.61,0.00014549,2]
[355240029,1741033848919,-500.0,0.00014549,2]
[355240031,1741033848929,-500.0,0.00014549,2]
[355240033,1741033848938,-500.0,0.00014549,2]
[355240035,1741033848947,-704.36,0.00014549,2]
[355240037,1741033848957,-1394.83,0.00014549,2]
[355240039,1741033848969,-541.0431938,0.00014549,2]
[355240041,1741033848979,-1268.65,0.00014549,2]
[355240043,1741033848988,-4842.74107222,0.00014549,2]
[355240045,1741033848998,-860.13,0.00014549,2]
[355240047,1741033849008,-500.0,0.00014549,2]
[355240049,1741033849018,-262.82,0.00014549,2]
[355240051,1741033849029,-1644.82,0.00014549,2]
[355240053,1741033849038,-500.0,0.00014549,2]
[355240055,1741033849048,-500.0,0.00014549,2]
[355240057,1741033849057,-500.0,0.00014549,2]
[355240059,1741033849067,-1958.82,0.00014549,2]
[355240061,1741033849077,-1076.35,0.00014549,2]
[355240063,1741033849087,-1031.62,0.00014549,2]
[355240065,1741033849097,-500.0,0.00014549,2]
[355240067,1741033849107,-500.0,0.00014549,2]
[355240069,1741033849117,-500.0,0.00014549,2]
[355240071,1741033849127,-1722.84,0.00014549,2]
[355240073,1741033849136,-997.9,0.00014549,2]
[355240075,1741033849146,-500.0,0.00014549,2]
[355240077,1741033849155,-500.0,0.00014549,2]
[355240079,1741033849166,-500.0,0.00014549,2]
[355240081,1741033849176,-1765.18,0.00014549,2]
[355240083,1741033849186,-500.0,0.00014549,2]
[355240085,1741033849196,-500.0,0.00014549,2]
[355240087,1741033849206,-1879.71,0.00014549,2]
[355240089,1741033849218,-553.35,0.00014549,2]
[355240091,1741033849228,-1841.34,0.00014549,2]
[355240093,1741033849238,-500.0,0.00014549,2]
[355240095,1741033849249,-1398.31,0.00014549,2]
[355240097,1741033849259,-1089.56,0.00014549,2]
[355240099,1741033849270,-720.88,0.00014549,2]
[355240101,1741033849281,-1048.84,0.00014549,2]
[355240103,1741033849291,-256.04,0.00014549,2]
[355240105,1741033849302,-376.55052799,0.00014549,2]
[355240107,1741033849313,-500.0,0.00014549,2]
[355240110,1741033849323,-500.0,0.00014549,2]
[355240111,1741033849333,-593.13,0.00014549,2]
[355240113,1741033849343,-845.94,0.00014549,2]
[355240116,1741033849353,-1657.79,0.00014549,2]
[355240118,1741033849365,-1540.4,0.00014549,2]
[355240120,1741033849376,-2149.49,0.00014549,2]
[355240122,1741033849388,-890.24,0.00014549,2]
[355240124,1741033849398,-1322.99,0.00014549,2]
[355240126,1741033849408,-1008.58,0.00014549,2]
[355240128,1741033849418,-500.0,0.00014549,2]
[355240130,1741033849431,-500.0,0.00014549,2]
[355240132,1741033849443,-1778.21,0.00014549,2]
[355240134,1741033849454,-1879.56,0.00014549,2]
[355240136,1741033849467,-539.23,0.00014549,2]
[355240138,1741033849479,-1390.59,0.00014549,2]
[355240140,1741033849490,-1485.3,0.00014549,2]
[355240142,1741033849501,-1123.15,0.00014549,2]
[355240144,1741033849513,-550.7572897,0.00014556,2]
[355240146,1741033849523,-150.0,0.00014562,2]
[355240148,1741033849533,-550.7572897,0.00014584,2]
[355240150,1741033849544,-595.61741432,0.00014595,2]
[355240152,1741033849556,-168.18415178,0.00014595,2]
[355240154,1741033849566,-5779.611385,0.000146,2]
[355240157,1741033849581,-550.7572897,0.00014611,2]
[355240159,1741033849592,-550.7572897,0.00014638,2]
[355240161,1741033849602,-160.63,0.00014641,2]
[355240163,1741033849613,-595.61741432,0.00014644,2]
[355240165,1741033849625,-168.18415178,0.00014644,2]
[355240167,1741033849635,-2068.0,0.00014647,2]
[355240169,1741033849646,-394.38627,0.0001465,2]
[355240171,1741033849656,-550.7572897,0.00014666,2]
[355240173,1741033849666,-1647.4406,0.00014693,2]
[355240175,1741033849676,-2436.608,0.00014693,2]
[355240177,1741033849686,-595.61741432,0.00014693,2]
[355240179,1741033849696,-168.18415178,0.00014693,2]
[355240180,1741033849706,-550.7572897,0.00014693,2]
[355240182,1741033849719,-45250.40868571,0.00014696,2]
[355240184,1741033849729,-229.67820286,0.00014698,2]
[355240185,1741033849739,-4758.392,0.00014699,2]
[355240187,1741033849749,-170.921,0.00014699,2]
[355240189,1741033849759,-186.37735499,0.00014699,2]
[355240191,1741033849769,-500.0,0.00014699,2]
[355240193,1741033849778,-500.0,0.00014699,2]
[355240195,1741033849788,-500.0,0.00014699,2]
[355240197,1741033849798,-586.66868911,0.00014699,2]
[355240199,1741033849808,-342.58287363,0.000147,2]
[355240201,1741033849818,-207580.08115653,0.000147,2]
[355240203,1741033849828,-26608.30705447,0.00014701,2]
[355240205,1741033849838,-148948.07250283,0.00014702,2]
[355240207,1741033849848,-2401.74118055,0.00014702,2]
[355240209,1741033849857,-229.67820286,0.00014703,2]
[355240210,1741033849867,-83181.6458188,0.00014703,2]
[355240212,1741033849877,-200.0,0.00014703,2]
[355240213,1741033849887,-2740.662989,0.00014704,2]
[355240215,1741033849897,-359.71532273,0.00014704,2]
[355240216,1741033849907,-27430.52914776,0.00014705,2]
[355240218,1741033849917,-2373.15700508,0.00014705,2]
[355240220,1741033849927,-50742.92162652,0.00014706,2]
[355240222,1741033849937,-685.16574725,0.00014709,2]
[355240223,1741033849946,-200.0,0.00014709,2]
[355240225,1741033849956,-3638.20848775,0.00014711,2]
[355240227,1741033849969,-3638.20848775,0.00014711,2]
[355240228,1741033849979,-83181.6458188,0.00014711,2]
[355240230,1741033849989,-148948.07250283,0.00014713,2]
[355240232,1741033849998,-7194.24034612,0.00014713,2]
[355240233,1741033850008,-20153.66788934,0.00014714,2]
[355240235,1741033850017,-20153.66788934,0.00014714,2]
[355240237,1741033850028,-2755.86205627,0.00014715,2]
[355240238,1741033850038,-488.71679597,0.00014715,2]
[355240240,1741033850048,-390.1113596,0.00014716,2]
[355240242,1741033850058,-3638.20848775,0.00014716,2]
[355240243,1741033850069,-229.67820286,0.00014717,2]
[355240245,1741033850078,-7194.24034612,0.00014717,2]
[355240247,1741033850088,-390.1113596,0.00014717,2]
[355240248,1741033850098,-2373.15700507,0.00014718,2]
[355240250,1741033850108,-7205.22354166,0.00014718,2]
[355240252,1741033850117,-2740.662989,0.00014719,2]
[355240253,1741033850127,-390.1113596,0.00014719,2]
[355240255,1741033850136,-26608.30705447,0.0001472,2]
[355240257,1741033850146,-20153.66788934,0.0001472,2]
[355240259,1741033850155,-83181.6458188,0.00014722,2]
[355240261,1741033850165,-7194.24034612,0.00014723,2]
[355240262,1741033850175,-7276.4169755,0.00014723,2]
[355240264,1741033850184,-2401.74118055,0.00014724,2]
[355240266,1741033850194,-3638.20848775,0.00014727,2]
[355240268,1741033850204,-7276.4169755,0.00014728,2]
[355240269,1741033850216,-7276.4169755,0.0001473,2]
[355240271,1741033850226,-7205.22354166,0.00014731,2]
[355240273,1741033850236,-200.0,0.00014732,2]
[355240275,1741033850246,-45250.40868571,0.00014732,2]
[355240276,1741033850258,-45250.40868571,0.00014732,2]
[355240278,1741033850269,-2373.15700508,0.00014733,2]
[355240280,1741033850281,-359.71532273,0.00014733,2]
[355240281,1741033850291,-26608.30705447,0.00014734,2]
[355240283,1741033850301,-3638.20848775,0.00014735,2]
[355240285,1741033850311,-33182.6814994,0.00014735,2]
[355240287,1741033850321,-2755.86205627,0.00014735,2]
[355240289,1741033850331,-1277.0,0.00014738,2]
[355240290,1741033850341,-152.319,0.00014738,2]
[355240292,1741033850351,-448.9306633,0.00014739,2]
[355240294,1741033850361,-200.0,0.00014739,2]
[355240296,1741033850373,-20153.66788934,0.00014741,2]
[355240297,1741033850384,-7276.4169755,0.00014741,2]
[355240299,1741033850395,-685.16574725,0.00014742,2]
[355240301,1741033850405,-26608.30705447,0.00014742,2]
[355240303,1741033850415,-448.9306633,0.00014742,2]
[355240305,1741033850425,-448.9306633,0.00014743,2]
[355240306,1741033850438,-200.0,0.00014744,2]
[355240308,1741033850448,-200.0,0.00014745,2]
[355240310,1741033850458,-7194.24034612,0.00014747,2]
[355240311,1741033850470,-7276.4169755,0.00014749,2]
[355240313,1741033850481,-3638.20848775,0.00014749,2]
[355240315,1741033850491,-20153.66788934,0.0001475,2]
[355240317,1741033850501,-342.58287363,0.0001475,2]
[355240319,1741033850512,-2373.15700507,0.00014752,2]
[355240320,1741033850522,-7276.4169755,0.00014754,2]
[355240322,1741033850532,-488.71679597,0.00014755,2]
[355240324,1741033850543,-2740.662989,0.00014755,2]
[355240326,1741033850553,-2401.74118055,0.00014755,2]
[355240327,1741033850563,-17946.76227357,0.00014757,2]
[355240375,1741033851294,-2164.10086932,0.00014757,2]
[355240376,1741033851429,-5009.79202673,0.00014757,2]
[355240378,1741033851441,-322.72,0.00014757,2]
[355240383,1741033851491,-1296.42683696,0.00014757,2]
[355240451,1741033852550,-3297.0999978,0.00014757,2]
[355240453,1741033852563,-1718.02,0.00014757,2]
[355240455,1741033852575,-6285.8786678,0.00014757,2]
[355240459,1741033852602,-934.18960929,0.00014757,2]
[355240548,1741033853531,-1645.8934959,0.00014757,2]
[355240563,1741033853677,-150.0,0.00014738,2]
[355240565,1741033853687,-8518.4,0.00014757,2]
[355240569,1741033853726,-1603.63784915,0.00014757,2]
[355240571,1741033853736,-2705.49315085,0.00014758,2]
[355240574,1741033853749,-2415.5,0.00014758,2]
[355240603,1741033904232,500.0,0.00014,2]
[355240604,1741033904273,501.07,0.00014,2]
[355240605,1741033904904,508.31,0.00014,2]
[355240606,1741033923161,-500.0,0.00014546,2]
[355240607,1741033923186,-403.03,0.00014546,2]
[355240608,1741033963151,-150.0,0.00014546,2]
[355240609,1741033963199,-200.0,0.00014546,2]
[355240610,1741033965696,3870.27453798,0.00013,2]
[355240611,1741033965718,10000.0,0.00013,2]
[355240612,1741033965741,10000.0,0.00013,2]
[355240613,1741033966221,10000.0,0.00013,2]
[355240614,1741033966244,10000.0,0.00013,2]
[355240615,1741033966267,1610.24289279,0.00013,2]
[355240616,1741034016739,258.59,0.0001372,2]
[355240617,1741034016971,258.59,0.00013799,2]
[355240618,1741034017176,258.59,0.00013878,2]
[355240619,1741034017402,258.59,0.00013958,2]
[355240620,1741034017628,258.59,0.00014037,2]
[355240621,1741034017825,258.59,0.00014117,2]
[355240622,1741034018049,258.59,0.00014196,2]
[355240623,1741034018254,258.59,0.00014276,2]
[355240624,1741034018692,258.59,0.00014355,2]
[355240625,1741034018995,258.59,0.00014434,2]
[355240626,1741034024511,5803.85710721,0.00013,2]
[355240627,1741034024537,10000.0,0.00013,2]
[355240628,1741034024564,10000.0,0.00013,2]
[355240629,1741034024588,10000.0,0.00013,2]
[355240630,1741034024614,10000.0,0.00013,2]
[355240631,1741034024638,10000.0,0.00013,2]
[355240632,1741034024661,10000.0,0.00013,2]
[355240633,1741034024684,10000.0,0.00013,2]
[355240634,1741034024708,10000.0,0.00013,2]
[355240635,1741034024730,10000.0,0.00013,2]
[355240636,1741034024752,10000.0,0.00013,2]
[355240637,1741034024773,10000.0,0.00013,2]
[355240638,1741034024795,10000.0,0.00013,2]
[355240639,1741034024817,10000.0,0.00013,2]
[355240640,1741034024839,10000.0,0.00013,2]
[355240641,1741034024863,10000.0,0.00013,2]
[355240642,1741034024886,10000.0,0.00013,2]
[355240643,1741034024909,10000.0,0.00013,2]
[355240644,1741034024931,10000.0,0.00013,2]
[355240645,1741034024954,10000.0,0.00013,2]
[355240646,1741034024976,10000.0,0.00013,2]
[355240647,1741034024999,10000.0,0.00013,2]
[355240648,1741034025021,10000.0,0.00013,2]
[355240649,1741034025044,10000.0,0.00013,2]
[355240650,1741034025066,10000.0,0.00013,2]
[355240651,1741034025088,10000.0,0.00013,2]
[355240652,1741034025113,10000.0,0.00013,2]
[355240653,1741034025135,10000.0,0.00013,2]
[355240654,1741034025157,10000.0,0.00013,2]
[355240655,1741034025179,10000.0,0.00013,2]
[355240656,1741034025200,10000.0,0.00013,2]
[355240657,1741034025222,10000.0,0.00013,2]
[355240658,1741034025245,10000.0,0.00013,2]
[355240659,1741034025267,10000.0,0.00013,2]
[355240660,1741034025291,10000.0,0.00013,2]
[355240661,1741034025314,10000.0,0.00013,2]
[355240662,1741034025336,10000.0,0.00013,2]
[355240663,1741034025358,10000.0,0.00013,2]
[355240664,1741034025383,10000.0,0.00013,2]
[355240665,1741034025405,10000.0,0.00013,2]
[355240666,1741034025428,10000.0,0.00013,2]
[355240667,1741034025454,10000.0,0.00013,2]
[355240668,1741034025476,10000.0,0.00013,2]
[355240669,1741034025501,10000.0,0.00013,2]
[355240670,1741034025526,10000.0,0.00013,2]
[355240671,1741034025550,10000.0,0.00013,2]
[355240672,1741034025573,10000.0,0.00013,2]
[355240673,1741034025595,10000.0,0.00013,2]
[355240674,1741034025620,10000.0,0.00013,2]
[355240675,1741034025644,10000.0,0.00013,2]
[355240676,1741034025669,10000.0,0.00013,2]
[355240677,1741034025693,10000.0,0.00013,2]
[355240678,1741034025717,10000.0,0.00013,2]
[355240679,1741034025740,10000.0,0.00013,2]
[355240680,1741034025763,10000.0,0.00013,2]
[355240681,1741034025785,10000.0,0.00013,2]
[355240682,1741034025806,10000.0,0.00013,2]
[355240683,1741034025828,10000.0,0.00013,2]
[355240684,1741034025850,10000.0,0.00013,2]
[355240685,1741034025873,10000.0,0.00013,2]
[355240686,1741034025895,10000.0,0.00013,2]
[355240687,1741034025919,10000.0,0.00013,2]
[355240688,1741034025941,10000.0,0.00013,2]
[355240689,1741034025965,10000.0,0.00013,2]
[355240690,1741034025988,10000.0,0.00013,2]
[355240691,1741034026010,10000.0,0.00013,2]
[355240692,1741034026032,10000.0,0.00013,2]
[355240693,1741034026055,10000.0,0.00013,2]
[355240694,1741034026077,10000.0,0.00013,2]
[355240695,1741034026099,10000.0,0.00013,2]
[355240696,1741034026123,10000.0,0.00013,2]
[355240697,1741034026146,10000.0,0.00013,2]
[355240698,1741034026169,10000.0,0.00013,2]
[355240699,1741034026191,10000.0,0.00013,2]
[355240700,1741034026212,10000.0,0.00013,2]
[355240701,1741034026235,10000.0,0.00013,2]
[355240702,1741034026258,10000.0,0.00013,2]
[355240703,1741034026280,10000.0,0.00013,2]
[355240704,1741034026302,10000.0,0.00013,2]
[355240705,1741034026325,10000.0,0.00013,2]
[355240706,1741034026348,10000.0,0.00013,2]
[355240707,1741034026375,10000.0,0.00013,2]
[355240708,1741034026399,10000.0,0.00013,2]
[355240709,1741034026423,10000.0,0.00013,2]
[355240710,1741034026446,10000.0,0.00013,2]
[355240711,1741034026480,731072.31447796,0.00013,2]
[355240712,1741034026510,1020928.71857903,0.00013,2]
[355240713,1741034026539,2000000.0,0.00013,2]
[355240714,1741034026571,1000000.0,0.00013,2]
[355240715,1741034026598,523.0,0.00013,2]
[355240716,1741034026630,2403.0,0.00013,2]
[355240717,1741034026654,258.59,0.00013,2]
[355240718,1741034026680,2601.01854885,0.00013,2]
[355240719,1741034026704,2601.01854885,0.00013,2]
[355240720,1741034026728,2601.01854885,0.00013,2]
[355240721,1741034026967,2601.01854885,0.00013,2]
[355240722,1741034027002,2601.01854885,0.00013,2]
[355240723,1741034027026,2601.01854885,0.00013,2]
[355240724,1741034027051,2601.01854885,0.00013,2]
[355240725,1741034027074,2601.01854885,0.00013,2]
[355240726,1741034027096,2601.01854885,0.00013,2]
[355240727,1741034027120,2601.01854885,0.00013,2]
[355240728,1741034027141,2601.01854885,0.00013,2]
[355240729,1741034027172,247.87506279,0.00013,2]
[355240730,1741034027200,2232.15104768,0.00013,2]
[355240731,1741034027229,2646.18517233,0.00013,2]
[355240732,1741034027257,3527.14949835,0.00013,2]
[355240733,1741034027286,2568.53965557,0.00013,2]
[355240734,1741034027314,2747.42196305,0.00013,2]
[355240735,1741034027343,3291.89494061,0.00013,2]
[355240736,1741034027375,2668.80842948,0.00013,2]
[355240737,1741034027405,3039.38961573,0.00013,2]
[355240738,1741034027435,2622.02310689,0.00013,2]
[355240739,1741034027469,4385.79010702,0.00013,2]
[355240740,1741034027500,3078.27343259,0.00013,2]
[355240741,1741034027531,3416.95329759,0.00013,2]
[355240742,1741034027564,3996.23859127,0.00013,2]
[355240743,1741034027595,4105.10830204,0.00013,2]
[355240744,1741034061463,-2400.0,0.00013,2]
[355240745,1741034100832,-186.37735499,0.00012999,2]
[355240746,1741034100857,-500.0,0.00012999,2]
[355240747,1741034100882,-250.0,0.00012999,2]
[355240748,1741034100908,-500.0,0.00012999,2]
[355240749,1741034100934,-217.63462097,0.00012999,2]
[355240750,1741034100963,-500.0,0.00012999,2]
[355240751,1741034100989,-500.0,0.00012999,2]
[355240752,1741034101015,-500.0,0.00012999,2]
[355240753,1741034101044,-500.0,0.00012999,2]
[355240754,1741034112237,-261.08168485,0.000129,2]
[355240755,1741034112264,-1208.91831515,0.00013,2]
[355240756,1741034115290,-3773.63,0.00013,2]
[355240757,1741034133567,-1130.29,0.00013,2]
[355240758,1741034146665,-340.14,0.000129,2]
[355240759,1741034168695,-72.38881426,0.000129,2]
[355240760,1741034168719,-163.43135064,0.000129,2]
[355240761,1741034168745,-173.46704497,0.000129,2]
[355240762,1741034168768,-514.53179013,0.000129,2]
[355240763,1741034205825,-2075.56,0.000129,2]
[355240764,1741034269654,-4689.79,0.000129,2]
[355240765,1741034724774,505.53,0.00010927,2]
[355240766,1741034811044,-150.0,0.00013222,7]
[355240767,1741034898757,-1047.43539878,0.0001264,2]
[355240768,1741034898998,-150.0,0.00012665,2]
[355240769,1741034899038,-170.68,0.00012667,2]
[355240770,1741034899068,-550.0,0.0001269,2]
[355240771,1741034899101,-300.0,0.00012739,2]
[355240772,1741034899130,-3586.01693418,0.0001274,2]
[355240773,1741034899174,-1172.37506582,0.0001274,2]
[355240774,1741034899203,-170.921,0.0001274,2]
[355240775,1741034899231,-595.61741432,0.000128,2]
[355240776,1741034899262,-500.35172488,0.000128,2]